fUSD/lending_fUSD_20260606
["ID","MTS","AMOUNT","RATE_DAILY","PERIOD"]
[424233257,1780678232000,-999.99,0.00011653,2]
[424233315,1780678233000,-500.0,0.00013698,2]
[424233323,1780678233000,-1682.59,0.00013698,2]
[424233320,1780678233000,-500.0,0.00013698,2]
[424233321,1780678233000,-547.55,0.00013698,2]
[424233324,1780678233000,-1682.59,0.00013698,2]
[424233316,1780678233000,-500.0,0.00013698,2]
[424233313,1780678233000,-500.0,0.00013698,2]
[424233314,1780678233000,-500.0,0.00013698,2]
[424233319,1780678233000,-612.41625126,0.00013698,2]
[424233305,1780678233000,-500.0,0.00013698,2]
[424233317,1780678233000,-500.0,0.00013698,2]
[424233318,1780678233000,-500.0,0.00013698,2]
[424233332,1780678233000,-500.0,0.00013698,2]
[424233325,1780678233000,-1682.59,0.00013698,2]
[424233326,1780678233000,-1682.59,0.00013698,2]
[424233327,1780678233000,-1682.59,0.00013698,2]
[424233335,1780678233000,-500.0,0.00013698,2]
[424233328,1780678233000,-1682.59,0.00013698,2]
[424233329,1780678233000,-1682.59,0.00013698,2]
[424233330,1780678233000,-1682.59,0.00013698,2]
[424233331,1780678233000,-1682.59,0.00013698,2]
[424233334,1780678233000,-500.0,0.00013698,2]
[424233333,1780678233000,-500.0,0.00013698,2]
[424233338,1780678233000,-352.08,0.00013698,2]
[424233304,1780678233000,-1000.0,0.00013697,2]
[424233322,1780678233000,-1682.59,0.00013698,2]
[424233306,1780678233000,-500.0,0.00013698,2]
[424233286,1780678233000,-150.0,0.00013488,2]
[424233309,1780678233000,-500.0,0.00013698,2]
[424233281,1780678233000,-334.37,0.00013359,2]
[424233287,1780678233000,-150.00000001,0.00013488,2]
[424233282,1780678233000,-1351.83,0.00013427,2]
[424233288,1780678233000,-150.0,0.00013488,2]
[424233284,1780678233000,-279.1725733,0.00013476,2]
[424233283,1780678233000,-233.63,0.00013476,2]
[424233285,1780678233000,-150.0,0.00013488,2]
[424233348,1780678233000,-500.0,0.00013698,2]
[424233290,1780678233000,-1421.36,0.0001351,2]
[424233289,1780678233000,-150.0,0.00013488,2]
[424233298,1780678233000,-150.0,0.00013609,2]
[424233291,1780678233000,-150.0,0.00013528,2]
[424233300,1780678233000,-150.0,0.0001365,2]
[424233294,1780678233000,-150.0,0.00013569,2]
[424233299,1780678233000,-150.0,0.0001363,2]
[424233292,1780678233000,-150.0,0.00013559,2]
[424233293,1780678233000,-5999.89222015,0.00013564,2]
[424233297,1780678233000,-1775.47700313,0.0001359,2]
[424233296,1780678233000,-499.5654,0.00013571,2]
[424233295,1780678233000,-500.0,0.00013571,2]
[424233301,1780678233000,-150.0,0.00013675,2]
[424233308,1780678233000,-500.0,0.00013698,2]
[424233307,1780678233000,-500.0,0.00013698,2]
[424233302,1780678233000,-41691.34129202,0.00013687,2]
[424233303,1780678233000,-150.0,0.0001369,2]
[424233310,1780678233000,-500.0,0.00013698,2]
[424233311,1780678233000,-500.0,0.00013698,2]
[424233312,1780678233000,-500.0,0.00013698,2]
[424233347,1780678233000,-500.0,0.00013698,2]
[424233336,1780678233000,-500.0,0.00013698,2]
[424233346,1780678233000,-500.0,0.00013698,2]
[424233369,1780678233000,-509.49,0.00013699,2]
[424233375,1780678233000,-500.0,0.00013699,2]
[424233383,1780678233000,-150.0,0.00013812,2]
[424233374,1780678233000,-500.0,0.00013699,2]
[424233384,1780678233000,-169.599922,0.00013815,2]
[424233385,1780678233000,-1421.36,0.00013824,2]
[424233377,1780678233000,-150.0,0.00013702,2]
[424233380,1780678233000,-150.0,0.00013771,2]
[424233376,1780678233000,-572.96766802,0.00013699,2]
[424233382,1780678233000,-1775.47700307,0.00013777,2]
[424233379,1780678233000,-150.0,0.00013731,2]
[424233378,1780678233000,-150.0,0.00013702,2]
[424233367,1780678233000,-500.0,0.00013698,2]
[424233393,1780678233000,-214.856362,0.00013901,2]
[424233386,1780678233000,-166.66,0.00013836,2]
[424233395,1780678233000,-150.0,0.00013933,2]
[424233396,1780678233000,-1775.47700307,0.00013964,2]
[424233387,1780678233000,-150.0,0.00013844,2]
[424233388,1780678233000,-150.0,0.00013852,2]
[424233397,1780678233000,-166.66,0.00013973,2]
[424233389,1780678233000,-150.0,0.00013862,2]
[424233390,1780678233000,-433.0,0.00013889,2]
[424233392,1780678233000,-5999.89222015,0.00013898,2]
[424233391,1780678233000,-150.0,0.00013893,2]
[424233398,1780678233000,-150.0,0.00013974,2]
[424233349,1780678233000,-500.0,0.00013698,2]
[424233394,1780678233000,-150.0,0.00013916,2]
[424233371,1780678233000,-166.66,0.00013699,2]
[424233381,1780678233000,-150.0,0.00013773,2]
[424233366,1780678233000,-500.0,0.00013698,2]
[424233337,1780678233000,-500.0,0.00013698,2]
[424233368,1780678233000,-500.0,0.00013698,2]
[424233339,1780678233000,-188.1578113,0.00013698,2]
[424233344,1780678233000,-500.0,0.00013698,2]
[424233341,1780678233000,-238.9,0.00013698,2]
[424233340,1780678233000,-500.0,0.00013698,2]
[424233342,1780678233000,-500.0,0.00013698,2]
[424233343,1780678233000,-500.0,0.00013698,2]
[424233350,1780678233000,-500.0,0.00013698,2]
[424233351,1780678233000,-500.0,0.00013698,2]
[424233352,1780678233000,-500.0,0.00013698,2]
[424233356,1780678233000,-500.0,0.00013698,2]
[424233354,1780678233000,-500.0,0.00013698,2]
[424233360,1780678233000,-500.0,0.00013698,2]
[424233345,1780678233000,-500.0,0.00013698,2]
[424233359,1780678233000,-496.36,0.00013698,2]
[424233363,1780678233000,-500.0,0.00013698,2]
[424233365,1780678233000,-500.0,0.00013698,2]
[424233370,1780678233000,-843.6,0.00013699,2]
[424233373,1780678233000,-500.0,0.00013699,2]
[424233372,1780678233000,-200.0,0.00013699,2]
[424233362,1780678233000,-500.0,0.00013698,2]
[424233364,1780678233000,-500.0,0.00013698,2]
[424233353,1780678233000,-500.0,0.00013698,2]
[424233358,1780678233000,-500.0,0.00013698,2]
[424233361,1780678233000,-500.0,0.00013698,2]
[424233357,1780678233000,-500.0,0.00013698,2]
[424233355,1780678233000,-500.0,0.00013698,2]
[424233437,1780678234000,-240.0,0.00014334,2]
[424233445,1780678234000,-590.0,0.00014334,2]
[424233446,1780678234000,-590.0,0.00014334,2]
[424233440,1780678234000,-500.0,0.00014334,2]
[424233436,1780678234000,-500.0,0.00014334,2]
[424233438,1780678234000,-500.0,0.00014334,2]
[424233443,1780678234000,-590.0,0.00014334,2]
[424233444,1780678234000,-590.0,0.00014334,2]
[424233430,1780678234000,-500.0,0.00014334,2]
[424233431,1780678234000,-500.0,0.00014334,2]
[424233424,1780678234000,-500.0,0.00014334,2]
[424233423,1780678234000,-500.0,0.00014334,2]
[424233447,1780678234000,-590.0,0.00014334,2]
[424233439,1780678234000,-500.0,0.00014334,2]
[424233460,1780678234000,-590.0,0.00014334,2]
[424233442,1780678234000,-150.0,0.00014334,2]
[424233458,1780678234000,-590.0,0.00014334,2]
[424233449,1780678234000,-590.0,0.00014334,2]
[424233457,1780678234000,-590.0,0.00014334,2]
[424233451,1780678234000,-590.0,0.00014334,2]
[424233448,1780678234000,-590.0,0.00014334,2]
[424233452,1780678234000,-590.0,0.00014334,2]
[424233450,1780678234000,-590.0,0.00014334,2]
[424233453,1780678234000,-590.0,0.00014334,2]
[424233456,1780678234000,-590.0,0.00014334,2]
[424233459,1780678234000,-590.0,0.00014334,2]
[424233455,1780678234000,-590.0,0.00014334,2]
[424233422,1780678234000,-500.0,0.00014334,2]
[424233441,1780678234000,-412.34598771,0.00014334,2]
[424233429,1780678234000,-500.0,0.00014334,2]
[424233405,1780678234000,-3292.0,0.00014094,2]
[424233425,1780678234000,-500.0,0.00014334,2]
[424233454,1780678234000,-590.0,0.00014334,2]
[424233399,1780678234000,-198.43026476,0.0001398,10]
[424233404,1780678234000,-2000.0,0.00014086,2]
[424233401,1780678234000,-150.0,0.00014014,2]
[424233407,1780678234000,-166.66,0.0001411,2]
[424233409,1780678234000,-150.0,0.0001413,2]
[424233406,1780678234000,-150.0,0.00014095,2]
[424233400,1780678234000,-150.0,0.00013987,2]
[424233408,1780678234000,-4218.76734499,0.00014117,2]
[424233402,1780678234000,-150.0,0.0001405,2]
[424233403,1780678234000,-150.0,0.00014055,2]
[424233420,1780678234000,-4218.76734499,0.00014291,2]
[424233410,1780678234000,-150.0,0.00014136,2]
[424233427,1780678234000,-500.0,0.00014334,2]
[424233413,1780678234000,-10733.99071455,0.00014185,2]
[424233411,1780678234000,-1775.47700307,0.00014151,2]
[424233416,1780678234000,-5999.89222015,0.00014232,2]
[424233421,1780678234000,-150.0,0.00014298,2]
[424233414,1780678234000,-4218.76734499,0.00014204,2]
[424233417,1780678234000,-150.0,0.00014237,2]
[424233412,1780678234000,-150.0,0.00014176,2]
[424233418,1780678234000,-166.66,0.00014247,2]
[424233419,1780678234000,-150.0,0.00014257,2]
[424233432,1780678234000,-500.0,0.00014334,2]
[424233435,1780678234000,-500.0,0.00014334,2]
[424233434,1780678234000,-500.0,0.00014334,2]
[424233433,1780678234000,-500.0,0.00014334,2]
[424233426,1780678234000,-500.0,0.00014334,2]
[424233415,1780678234000,-150.0,0.00014217,2]
[424233468,1780678234000,-1775.47700307,0.00014339,2]
[424233428,1780678234000,-500.0,0.00014334,2]
[424233470,1780678234000,-4218.76734499,0.00014378,2]
[424233497,1780678234000,-150.0,0.00014784,2]
[424233498,1780678234000,-150.0,0.00014799,2]
[424233499,1780678234000,-221.78243232,0.000148,2]
[424233520,1780678234000,-500.0,0.00014898,2]
[424233500,1780678234000,-10000.0,0.000148,2]
[424233501,1780678234000,-197.87818747,0.000148,2]
[424233508,1780678234000,-150.0,0.00014865,2]
[424233506,1780678234000,-221.78243232,0.0001485,2]
[424233503,1780678234000,-221.78243232,0.00014817,2]
[424233504,1780678234000,-150.0,0.00014824,2]
[424233502,1780678234000,-4218.76734499,0.00014813,2]
[424233510,1780678234000,-1500.0,0.00014866,2]
[424233509,1780678234000,-25000.0,0.00014865,3]
[424233487,1780678234000,-150.0,0.00014612,2]
[424233507,1780678234000,-25000.0,0.00014856,3]
[424233505,1780678234000,-221.78243232,0.00014833,2]
[424233512,1780678234000,-25000.0,0.00014874,3]
[424233524,1780678234000,-1026.59874391,0.00014899,5]
[424233523,1780678234000,-1019.76924146,0.00014899,5]
[424233517,1780678234000,-161.03491528,0.0001489,2]
[424233515,1780678234000,-25000.0,0.00014882,3]
[424233518,1780678234000,-25000.0,0.00014891,3]
[424233516,1780678234000,-221.78243232,0.00014883,2]
[424233513,1780678234000,-500.0,0.00014877,2]
[424233514,1780678234000,-500.0,0.00014877,2]
[424233519,1780678234000,-410.21055436,0.00014897,2]
[424233521,1780678234000,-500.0,0.00014898,2]
[424233469,1780678234000,-150.0,0.00014344,2]
[424233511,1780678234000,-221.78243232,0.00014867,2]
[424233496,1780678234000,-150.0,0.00014772,2]
[424233522,1780678234000,-1019.76924146,0.00014899,5]
[424233495,1780678234000,-150.0,0.00014743,2]
[424233492,1780678234000,-1775.47700307,0.00014713,2]
[424233461,1780678234000,-590.0,0.00014334,2]
[424233472,1780678234000,-166.66,0.00014384,2]
[424233471,1780678234000,-150.0,0.00014379,2]
[424233473,1780678234000,-150.0,0.00014419,2]
[424233465,1780678234000,-590.0,0.00014334,2]
[424233462,1780678234000,-590.0,0.00014334,2]
[424233466,1780678234000,-604.6433341,0.00014334,2]
[424233467,1780678234000,-150.0,0.00014338,2]
[424233464,1780678234000,-590.0,0.00014334,2]
[424233474,1780678234000,-150.0,0.00014424,2]
[424233475,1780678234000,-150.0,0.0001446,2]
[424233485,1780678234000,-5999.89222015,0.00014566,2]
[424233476,1780678234000,-4218.76734499,0.00014465,2]
[424233463,1780678234000,-590.0,0.00014334,2]
[424233477,1780678234000,-150.0,0.000145,2]
[424233491,1780678234000,-150.0,0.00014703,2]
[424233484,1780678234000,-150.0,0.00014558,2]
[424233493,1780678234000,-4218.76734499,0.00014726,2]
[424233494,1780678234000,-17537.09970174,0.00014737,2]
[424233490,1780678234000,-150.0,0.00014662,2]
[424233486,1780678234000,-150.0,0.00014581,2]
[424233488,1780678234000,-150.0,0.00014622,2]
[424233489,1780678234000,-4218.76734499,0.00014639,2]
[424233482,1780678234000,-150.0,0.00014541,2]
[424233479,1780678234000,-1775.47700307,0.00014526,2]
[424233478,1780678234000,-706.21705203,0.00014502,2]
[424233483,1780678234000,-4218.76734499,0.00014552,2]
[424233480,1780678234000,-1682.59,0.00014533,2]
[424233481,1780678234000,-500.0,0.00014533,2]
[424233551,1780678235000,-500.0,0.00014899,2]
[424233546,1780678235000,-500.0,0.00014899,2]
[424233543,1780678235000,-500.0,0.00014899,2]
[424233552,1780678235000,-500.0,0.00014899,2]
[424233550,1780678235000,-500.0,0.00014899,2]
[424233553,1780678235000,-500.0,0.00014899,2]
[424233549,1780678235000,-500.0,0.00014899,2]
[424233561,1780678235000,-258.0,0.00014899,2]
[424233562,1780678235000,-500.0,0.00014899,2]
[424233555,1780678235000,-500.0,0.00014899,2]
[424233556,1780678235000,-500.0,0.00014899,2]
[424233554,1780678235000,-500.0,0.00014899,2]
[424233559,1780678235000,-500.0,0.00014899,2]
[424233558,1780678235000,-500.0,0.00014899,2]
[424233560,1780678235000,-500.0,0.00014899,2]
[424233547,1780678235000,-500.0,0.00014899,2]
[424233564,1780678235000,-500.0,0.00014899,2]
[424233557,1780678235000,-182.69,0.00014899,2]
[424233538,1780678235000,-500.0,0.00014899,2]
[424233526,1780678235000,-1023.63214271,0.00014899,5]
[424233539,1780678235000,-500.0,0.00014899,2]
[424233574,1780678235000,-500.0,0.00014899,2]
[424233527,1780678235000,-199.19886557,0.00014899,5]
[424233525,1780678235000,-1026.59874391,0.00014899,5]
[424233534,1780678235000,-500.0,0.00014899,2]
[424233535,1780678235000,-500.0,0.00014899,2]
[424233537,1780678235000,-500.0,0.00014899,2]
[424233531,1780678235000,-280.98979946,0.00014899,2]
[424233528,1780678235000,-16629.28145878,0.00014899,2]
[424233540,1780678235000,-500.0,0.00014899,2]
[424233530,1780678235000,-500.0,0.00014899,2]
[424233529,1780678235000,-500.0,0.00014899,2]
[424233533,1780678235000,-500.0,0.00014899,2]
[424233536,1780678235000,-500.0,0.00014899,2]
[424233544,1780678235000,-500.0,0.00014899,2]
[424233545,1780678235000,-500.0,0.00014899,2]
[424233548,1780678235000,-500.0,0.00014899,2]
[424233541,1780678235000,-500.0,0.00014899,2]
[424233542,1780678235000,-500.0,0.00014899,2]
[424233532,1780678235000,-500.0,0.00014899,2]
[424233568,1780678235000,-250.0,0.00014899,2]
[424233583,1780678235000,-500.0,0.00014899,2]
[424233566,1780678235000,-195.15,0.00014899,2]
[424233594,1780678235000,-153551.82722735,0.000149,2]
[424233596,1780678235000,-1642.20766926,0.000149,2]
[424233591,1780678235000,-181031.29829251,0.000149,2]
[424233593,1780678235000,-140093.70617093,0.000149,2]
[424233592,1780678235000,-98179.47851694,0.000149,2]
[424233595,1780678235000,-1020.34556996,0.000149,2]
[424233597,1780678235000,-10435.19025554,0.000149,2]
[424233602,1780678235000,-3458.02756157,0.000149,2]
[424233590,1780678235000,-314.68656942,0.000149,3]
[424233600,1780678235000,-471.84604647,0.000149,2]
[424233601,1780678235000,-6086.51420931,0.000149,2]
[424233603,1780678235000,-393.653476,0.000149,2]
[424233598,1780678235000,-2000.0,0.000149,2]
[424233605,1780678235000,-1028.29474345,0.000149,2]
[424233604,1780678235000,-423.07450151,0.000149,2]
[424233606,1780678235000,-354.00232647,0.000149,2]
[424233608,1780678235000,-818.66875,0.000149,2]
[424233607,1780678235000,-272.12352312,0.000149,2]
[424233565,1780678235000,-500.0,0.00014899,2]
[424233588,1780678235000,-500.0,0.00014899,2]
[424233599,1780678235000,-1316.91574227,0.000149,2]
[424233585,1780678235000,-485.98003348,0.00014899,2]
[424233589,1780678235000,-177.31164547,0.00014899,2]
[424233563,1780678235000,-500.0,0.00014899,2]
[424233569,1780678235000,-500.0,0.00014899,2]
[424233572,1780678235000,-500.0,0.00014899,2]
[424233567,1780678235000,-150.0,0.00014899,2]
[424233573,1780678235000,-500.0,0.00014899,2]
[424233571,1780678235000,-500.0,0.00014899,2]
[424233575,1780678235000,-500.0,0.00014899,2]
[424233576,1780678235000,-500.0,0.00014899,2]
[424233570,1780678235000,-500.0,0.00014899,2]
[424233578,1780678235000,-500.0,0.00014899,2]
[424233582,1780678235000,-500.0,0.00014899,2]
[424233584,1780678235000,-500.0,0.00014899,2]
[424233579,1780678235000,-500.0,0.00014899,2]
[424233586,1780678235000,-500.0,0.00014899,2]
[424233587,1780678235000,-500.0,0.00014899,2]
[424233581,1780678235000,-500.0,0.00014899,2]
[424233577,1780678235000,-500.0,0.00014899,2]
[424233580,1780678235000,-500.0,0.00014899,2]
[424233630,1780678240000,-194.09368115,0.00014925,2]
[424233633,1780678240000,-327.81,0.00014985,2]
[424233627,1780678240000,-410.21055435,0.000149,2]
[424233632,1780678240000,-451.49,0.00014985,2]
[424233638,1780678240000,-164.0,0.00014986,2]
[424233631,1780678240000,-150.0,0.00014946,2]
[424233629,1780678240000,-150.0,0.00014905,2]
[424233639,1780678240000,-161.03491528,0.0001499,2]
[424233628,1780678240000,-500.0,0.00014904,2]
[424233637,1780678240000,-181.86753552,0.00014986,2]
[424233634,1780678240000,-229.51,0.00014985,2]
[424233635,1780678240000,-166.63099762,0.00014986,2]
[424233621,1780678240000,-4218.76734499,0.000149,2]
[424233616,1780678240000,-2249.62662843,0.00014897,2]
[424233623,1780678240000,-5999.89222015,0.000149,2]
[424233618,1780678240000,-897422.82541734,0.000149,2]
[424233626,1780678240000,-197.87818747,0.000149,2]
[424233622,1780678240000,-221.78243232,0.000149,2]
[424233624,1780678240000,-25000.0,0.000149,3]
[424233617,1780678240000,-410.21055435,0.00014899,2]
[424233625,1780678240000,-1775.47700307,0.000149,2]
[424233620,1780678240000,-25000.0,0.000149,3]
[424233615,1780678240000,-344.68025785,0.00012892,2]
[424233636,1780678240000,-155.67737119,0.00014986,2]
[424233619,1780678240000,-1360.45,0.000149,2]
[424233640,1780678240000,-161.03491528,0.0001499,2]
[424233644,1780678240000,-229320.4667903,0.00014997,2]
[424233649,1780678240000,-1682.59,0.00014999,2]
[424233648,1780678240000,-1033.42824636,0.00014999,5]
[424233667,1780678240000,-250.0,0.00014999,2]
[424233666,1780678240000,-190.18,0.00014999,2]
[424233664,1780678240000,-500.0,0.00014999,2]
[424233665,1780678240000,-425.80778009,0.00014999,2]
[424233662,1780678240000,-500.0,0.00014999,2]
[424233660,1780678240000,-1682.59,0.00014999,2]
[424233661,1780678240000,-1682.59981892,0.00014999,2]
[424233659,1780678240000,-1682.59,0.00014999,2]
[424233657,1780678240000,-1682.59,0.00014999,2]
[424233663,1780678240000,-500.0,0.00014999,2]
[424233656,1780678240000,-1682.59,0.00014999,2]
[424233658,1780678240000,-1682.59,0.00014999,2]
[424233654,1780678240000,-1682.59,0.00014999,2]
[424233655,1780678240000,-1682.59,0.00014999,2]
[424233652,1780678240000,-1682.59,0.00014999,2]
[424233647,1780678240000,-1033.42824635,0.00014999,5]
[424233646,1780678240000,-1033.42824634,0.00014999,5]
[424233641,1780678240000,-500.0,0.00014996,2]
[424233643,1780678240000,-6564.4964163,0.00014997,2]
[424233645,1780678240000,-1235.8315923,0.00014997,2]
[424233668,1780678240000,-300.0,0.00014999,2]
[424233642,1780678240000,-151.0,0.00014997,2]
[424233651,1780678240000,-1682.59,0.00014999,2]
[424233650,1780678240000,-1682.59,0.00014999,2]
[424233653,1780678240000,-1682.59,0.00014999,2]
[424233673,1780678241000,-2080.4563166,0.00015,2]
[424233674,1780678241000,-8098.65518294,0.00015,2]
[424233669,1780678241000,-666.0,0.00014999,2]
[424233671,1780678241000,-300.0,0.00014999,2]
[424233672,1780678241000,-1216214.70707495,0.00015,2]
[424233676,1780678241000,-14812.08234523,0.00015,2]
[424233677,1780678241000,-636.26,0.00015,2]
[424233670,1780678241000,-300.0,0.00014999,2]
[424233675,1780678241000,-1778546.33524706,0.00015,2]
[424233720,1780678242000,-231.08268807,0.00015,3]
[424233713,1780678242000,-500.0,0.00015,2]
[424233711,1780678242000,-151.0,0.00015,2]
[424233712,1780678242000,-200.0,0.00015,2]
[424233702,1780678242000,-152.346654,0.00015,2]
[424233703,1780678242000,-151.0,0.00015,2]
[424233700,1780678242000,-151.0,0.00015,2]
[424233704,1780678242000,-151.0,0.00015,2]
[424233707,1780678242000,-223.12016049,0.00015,3]
[424233708,1780678242000,-202.79877633,0.00015,2]
[424233701,1780678242000,-151.0,0.00015,2]
[424233714,1780678242000,-300.0,0.00015,3]
[424233709,1780678242000,-500.0,0.00015,2]
[424233695,1780678242000,-2000.0,0.00015,2]
[424233698,1780678242000,-151.0,0.00015,2]
[424233699,1780678242000,-151.0,0.00015,2]
[424233697,1780678242000,-1941.69,0.00015,2]
[424233690,1780678242000,-500.0,0.00015,2]
[424233691,1780678242000,-2000.0,0.00015,2]
[424233692,1780678242000,-2000.0,0.00015,2]
[424233693,1780678242000,-2000.0,0.00015,2]
[424233694,1780678242000,-1766.75,0.00015,2]
[424233696,1780678242000,-1236.15,0.00015,2]
[424233689,1780678242000,-17128495.31669389,0.00015,2]
[424233681,1780678242000,-2494.93304004,0.00015,2]
[424233679,1780678242000,-539.64863163,0.00015,2]
[424233680,1780678242000,-909.09,0.00015,2]
[424233710,1780678242000,-311.19510534,0.00015,3]
[424233705,1780678242000,-500.0,0.00015,2]
[424233715,1780678242000,-151.0,0.00015,2]
[424233706,1780678242000,-169.36048146,0.00015,2]
[424233717,1780678242000,-500.0,0.00015,2]
[424233768,1780678242000,-1108.22,0.0001531,2]
[424233771,1780678242000,-5343.81,0.0001535,2]
[424233774,1780678242000,-300.0,0.00015396,2]
[424233765,1780678242000,-225.71,0.000153,2]
[424233763,1780678242000,-5860.5281994,0.00015178,2]
[424233761,1780678242000,-5370.4671279,0.00015178,2]
[424233742,1780678242000,-221.57881646,0.00015,2]
[424233754,1780678242000,-900.0,0.00015068,2]
[424233716,1780678242000,-231.08268806,0.00015,2]
[424233756,1780678242000,-736.0,0.00015171,2]
[424233752,1780678242000,-360.414396,0.00015068,2]
[424233750,1780678242000,-360.414396,0.00015068,2]
[424233748,1780678242000,-360.414396,0.00015068,2]
[424233746,1780678242000,-360.414396,0.00015068,2]
[424233744,1780678242000,-350.0,0.00015014,3]
[424233759,1780678242000,-746.8692493,0.00015175,2]
[424233740,1780678242000,-332.36822469,0.00015,2]
[424233730,1780678242000,-1024.56049,0.00015,2]
[424233719,1780678242000,-151.0,0.00015,2]
[424233718,1780678242000,-193.24806419,0.00015,2]
[424233722,1780678242000,-151.0,0.00015,2]
[424233734,1780678242000,-151.0,0.00015,2]
[424233728,1780678242000,-1024.56049,0.00015,2]
[424233732,1780678242000,-1024.56049,0.00015,2]
[424233725,1780678242000,-300.0,0.00015,3]
[424233724,1780678242000,-500.0,0.00015,2]
[424233727,1780678242000,-1024.56049,0.00015,2]
[424233738,1780678242000,-151.0,0.00015,2]
[424233721,1780678242000,-151.0,0.00015,2]
[424233723,1780678242000,-200.0,0.00015,2]
[424233736,1780678242000,-151.0,0.00015,2]
[424233839,1780678243000,-1000.0,0.00015556,2]
[424233848,1780678243000,-1000.0,0.00015556,2]
[424233843,1780678243000,-1000.0,0.00015556,2]
[424233841,1780678243000,-1000.0,0.00015556,2]
[424233846,1780678243000,-1000.0,0.00015556,2]
[424233850,1780678243000,-1000.0,0.00015556,2]
[424233833,1780678243000,-1000.0,0.00015556,2]
[424233845,1780678243000,-1000.0,0.00015556,2]
[424233842,1780678243000,-1000.0,0.00015556,2]
[424233840,1780678243000,-1000.0,0.00015556,2]
[424233838,1780678243000,-1000.0,0.00015556,2]
[424233829,1780678243000,-1000.0,0.00015556,2]
[424233844,1780678243000,-1000.0,0.00015556,2]
[424233849,1780678243000,-1000.0,0.00015556,2]
[424233871,1780678243000,-1000.0,0.00015556,2]
[424233860,1780678243000,-1000.0,0.00015556,2]
[424233857,1780678243000,-1000.0,0.00015556,2]
[424233852,1780678243000,-1000.0,0.00015556,2]
[424233865,1780678243000,-1000.0,0.00015556,2]
[424233856,1780678243000,-1000.0,0.00015556,2]
[424233863,1780678243000,-1000.0,0.00015556,2]
[424233851,1780678243000,-1000.0,0.00015556,2]
[424233859,1780678243000,-606.38,0.00015556,2]
[424233861,1780678243000,-1000.0,0.00015556,2]
[424233855,1780678243000,-1000.0,0.00015556,2]
[424233854,1780678243000,-1000.0,0.00015556,2]
[424233867,1780678243000,-1000.0,0.00015556,2]
[424233869,1780678243000,-1000.0,0.00015556,2]
[424233826,1780678243000,-670.46851618,0.00015555,2]
[424233847,1780678243000,-1000.0,0.00015556,2]
[424233831,1780678243000,-1000.0,0.00015556,2]
[424233815,1780678243000,-540.95084713,0.00015404,2]
[424233830,1780678243000,-1000.0,0.00015556,2]
[424233778,1780678243000,-2000.0,0.00015397,2]
[424233776,1780678243000,-666.0,0.00015396,2]
[424233785,1780678243000,-2000.0,0.00015397,2]
[424233780,1780678243000,-2000.0,0.00015397,2]
[424233783,1780678243000,-2000.0,0.00015397,2]
[424233787,1780678243000,-2000.0,0.00015397,2]
[424233790,1780678243000,-2000.0,0.00015397,2]
[424233795,1780678243000,-2000.0,0.00015397,2]
[424233793,1780678243000,-2000.0,0.00015397,2]
[424233809,1780678243000,-2000.0,0.00015397,2]
[424233800,1780678243000,-1229.95,0.00015397,2]
[424233811,1780678243000,-2000.0,0.00015397,2]